bitfinex-derivatives/quotes_BNBF0:USTF0_20230831
["timestamp","ask_amount","ask_price","bid_price","bid_amount"]
[1693482128554,0.07284625,225.04,224.63,0.18971683]
[1693482128755,0.07284625,225.03,224.63,0.18971683]
[1693482129557,0.07284625,225.04,224.63,0.26192697]
[1693482129756,0.07284625,225.03,224.64,0.18971683]
[1693482130557,0.07284625,225.04,224.64,0.26192697]
[1693482130757,0.07284625,225.04,224.65,0.26192697]
[1693482130957,2.42820845,225.18,224.65,0.26192697]
[1693482130958,0.07284625,225.05,224.66,0.18971683]
[1693482131355,0.07284625,225.04,224.66,0.18971683]
[1693482131858,0.07284625,225.04,224.66,0.26192697]
[1693482132059,0.07284625,225.04,224.67,0.18971683]
[1693482132358,0.07284625,225.04,224.68,0.18971683]
[1693482132560,0.07284625,225.04,224.66,0.18971683]
[1693482132759,0.07284625,225.04,224.67,0.18971683]
[1693482132959,0.07284625,225.04,224.66,0.18971683]
[1693482133154,0.07284625,225.04,224.67,0.18971683]
[1693482133359,0.07284625,225.04,224.66,0.18971683]
[1693482133558,0.07284625,225.04,224.67,0.18971683]
[1693482133754,0.07284625,225.04,224.66,0.18971683]
[1693482133958,0.07284625,225.04,224.67,0.18971683]
[1693482134360,0.07284625,225.09,224.71,0.07221014]
[1693482134562,0.07284625,225.1,224.72,0.26192697]
[1693482134861,0.07284625,225.09,224.73,0.18971683]
[1693482135058,2.42820845,225.23,224.73,0.18971683]
[1693482135059,0.07284625,225.1,224.73,0.18971683]
[1693482135254,0.07284625,225.11,224.74,0.18971683]
[1693482135458,0.07284625,225.11,224.72,0.18971683]
[1693482135663,0.07284625,225.11,224.73,0.18971683]
[1693482135856,0.07284625,225.1,224.74,0.18971683]
[1693482136065,0.07284625,225.1,224.75,0.18971683]
[1693482136256,0.07284625,225.1,224.73,0.18971683]
[1693482136460,0.07284625,225.11,224.76,0.18971683]
[1693482136662,0.07284625,225.1,224.74,0.18971683]
[1693482136861,0.07284625,225.11,224.77,0.18971683]
[1693482137063,0.07284625,225.11,224.49,0.96280191]
[1693482137064,0.07284625,225.12,224.78,0.18971683]
[1693482137263,0.07284625,225.12,224.72,0.26192697]
[1693482137459,0.07284625,225.12,224.73,0.18971683]
[1693482137864,0.07284625,225.11,224.73,0.18971683]
[1693482138165,0.07284625,225.12,224.73,0.18971683]
[1693482138359,0.07284625,225.12,224.74,0.18971683]
[1693482138564,0.07284625,225.12,224.72,0.18971683]
[1693482138765,0.07284625,225.12,224.73,0.18971683]
[1693482139061,0.07284625,225.12,224.74,0.18971683]
[1693482139261,0.07284625,225.12,224.72,0.26192697]
[1693482139566,0.07284625,225.12,224.73,0.18971683]
[1693482139967,0.07284625,225.13,224.73,0.18971683]
[1693482140366,0.07284625,225.13,224.74,0.18971683]
[1693482140566,0.07284625,225.13,224.75,0.18971683]
[1693482140767,0.07284625,225.13,224.73,0.18971683]
[1693482141066,0.07284625,225.13,224.72,0.07221014]
[1693482141067,0.07284625,225.13,224.74,0.18971683]
[1693482141260,0.07284625,225.13,224.72,0.18971683]
[1693482141469,0.07284625,225.14,224.73,0.18971683]
[1693482141662,0.07284625,225.16,224.74,0.07221014]
[1693482142169,0.07284625,225.2,224.79,0.07221014]
[1693482142360,0.07284625,225.2,224.82,0.07221014]
[1693482142561,0.07284625,225.24,224.82,0.07221014]
[1693482142768,0.07284625,225.31,224.82,0.21663042]
[1693482142973,0.07284625,225.31,224.87,0.07221014]
[1693482143166,0.1456925,225.34,224.87,0.07221014]
[1693482143565,0.1456925,225.34,224.88,0.18823519]
[1693482143766,0.07284625,225.39,224.88,0.18823519]
[1693482143965,0.07284625,225.39,224.85,0.18823519]
[1693482144568,0.81583776,225.38,224.89,0.18823519]
[1693482144868,0.07284625,225.39,224.89,0.18823519]
[1693482145069,0.07284625,225.39,224.9,0.18823519]
[1693482146268,0.07284625,225.39,224.85,0.18823519]
[1693482147066,0.07284625,225.39,224.91,0.18675838]
[1693482147268,0.07284625,225.39,224.84,0.07221014]
[1693482147469,0.07284625,225.39,224.92,0.18659297]
[1693482147667,0.07284625,225.39,224.85,0.18659297]
[1693482148769,0.07284625,225.39,224.87,0.46480964]
[1693482149071,0.07284625,226.2,225.02,0.07221014]
[1693482150374,0.07284625,226.2,225.03,0.18659297]
[1693482150569,0.07284625,226.2,225.03,0.37205338]
[1693482151168,0.81379842,226.19,225.03,0.18546041]
[1693482151670,0.81379842,226.19,225.04,0.18546041]
[1693482152068,0.81379842,226.19,225.02,0.07221014]
[1693482152069,0.81379842,226.19,225.03,0.18546041]
[1693482154167,0.81379842,226.19,224.96,0.18546041]
[1693482154373,0.81379842,226.19,224.45,0.96280191]
[1693482154374,0.81379842,226.19,224.7,0.25767055]
[1693482154670,0.81379842,226.34,224.97,0.18546041]
[1693482154867,0.81379842,226.18,224.98,0.18546041]
[1693482155267,0.81379842,226.33,224.98,0.18546041]
[1693482155471,0.81379842,226.33,224.68,0.07221014]
[1693482155770,0.81379842,226.34,224.99,0.18546041]
[1693482155970,0.81379842,226.34,224.69,0.18546041]
[1693482156170,0.81379842,226.32,224.69,0.18546041]
[1693482156365,0.81379842,226.32,225.0,0.18546041]
[1693482156763,0.81379842,226.31,224.63,0.18546041]
[1693482156967,0.81379842,226.31,224.64,0.18546041]
[1693482157172,0.81379842,226.37,224.62,0.18546041]
[1693482157371,0.81379842,226.3,224.63,0.18546041]
[1693482157669,0.81379842,226.36,224.64,0.18546041]
[1693482157872,0.07284625,226.34,224.64,0.18546041]
[1693482158074,0.88664467,226.33,224.65,0.18546041]
[1693482158273,0.81379842,226.32,224.56,0.18546041]
[1693482158466,0.81379842,226.32,224.66,0.18546041]
[1693482158768,0.88664467,226.34,224.57,0.18546041]
[1693482158969,0.81379842,226.31,224.57,0.18546041]
[1693482159169,0.81379842,226.31,224.67,0.18546041]
[1693482159369,0.81379842,226.33,224.58,0.18546041]
[1693482159774,0.81379842,226.3,224.68,0.18546041]
[1693482159968,0.81379842,226.32,224.59,0.18546041]
[1693482160171,0.81379842,226.29,224.59,0.18546041]
[1693482160366,0.81379842,226.31,224.54,0.18546041]
[1693482160567,0.81379842,226.28,224.6,0.18546041]
[1693482160775,0.81379842,226.3,224.55,0.18546041]
[1693482160970,0.81379842,226.27,224.61,0.18546041]
[1693482161177,0.81379842,226.27,224.56,0.18546041]
[1693482161374,0.81379842,226.3,224.56,0.18546041]
[1693482161577,0.81379842,226.26,224.47,0.25767055]
[1693482161774,0.81379842,226.26,224.57,0.18546041]
[1693482161974,0.81379842,226.29,224.48,0.25767055]
[1693482162276,0.81379842,226.28,224.49,0.18546041]
[1693482162475,0.81379842,226.3,224.49,0.25767055]
[1693482162674,0.81379842,226.27,224.5,0.18546041]
[1693482162873,0.81379842,226.26,224.5,0.18546041]
[1693482163276,0.88664467,226.32,224.5,0.18546041]
[1693482163474,0.81379842,226.32,224.5,0.18546041]
[1693482163676,0.81379842,226.31,224.5,0.18546041]
[1693482163876,0.81379842,226.32,224.56,0.07221014]
[1693482164175,0.81379842,226.32,224.57,0.18546041]
[1693482164376,0.88664467,226.37,224.57,0.18546041]
[1693482164677,0.81379842,226.31,224.58,0.18546041]
[1693482164875,0.07284625,226.32,224.56,0.18546041]
[1693482165070,0.81379842,226.3,224.56,0.18546041]
[1693482165278,0.88664467,226.3,224.51,0.18546041]
[1693482165479,0.88664467,226.3,224.52,0.18546041]
[1693482165672,0.81379842,226.29,224.52,0.18546041]
[1693482165872,0.81379842,226.28,224.52,0.07221014]
[1693482166175,0.88664467,226.3,224.53,0.25767055]
[1693482166376,0.81379842,226.27,224.53,0.25767055]
[1693482166583,0.81379842,226.29,224.54,0.18546041]
[1693482166778,0.81379842,226.26,224.54,0.18546041]
[1693482166978,0.81379842,226.25,224.54,0.18546041]
[1693482167176,0.07284625,226.22,224.55,0.18546041]
[1693482167377,0.81379842,226.21,224.5,0.18546041]
[1693482167777,0.88664467,226.21,224.5,0.18546041]
[1693482167979,0.07284625,226.19,224.5,0.07221014]
[1693482168274,0.81379842,226.18,224.56,0.07221014]
[1693482168477,0.81379842,226.17,224.57,0.18546041]
[1693482168774,0.81379842,226.16,224.57,0.18546041]
[1693482168975,0.07284625,226.18,224.59,0.07221014]
[1693482169177,0.81379842,226.17,224.6,0.18546041]
[1693482170183,0.07284625,226.11,224.6,0.18546041]
[1693482170383,0.07284625,226.09,224.59,0.25767055]
[1693482170683,0.88664467,226.08,224.6,0.18546041]
[1693482170881,0.88664467,226.08,224.59,0.18546041]
[1693482170882,0.07284625,226.07,224.59,0.18546041]
[1693482171079,0.07284625,226.06,224.59,0.18546041]
[1693482171275,0.07284625,226.06,224.6,0.18546041]
[1693482171482,0.81379842,226.05,224.6,0.18546041]
[1693482171680,0.88664467,226.05,224.61,0.18546041]
[1693482171882,0.88664467,226.05,224.55,0.07221014]
[1693482171883,0.88664467,226.05,224.56,0.18546041]
[1693482172084,0.07284625,226.02,224.59,0.07221014]
[1693482172383,0.07284625,226.0,224.6,0.25767055]
[1693482172580,0.81379842,225.99,224.61,0.18546041]
[1693482172981,0.07284625,225.95,224.61,0.18546041]
[1693482173183,0.1456925,225.98,224.61,0.07221014]
[1693482173184,0.07284625,225.9,224.61,0.07221014]
[1693482173384,0.07284625,225.9,224.62,0.18546041]
[1693482173385,0.81379842,225.89,224.62,0.18546041]
[1693482173582,0.81379842,225.89,224.61,0.18546041]
[1693482173782,0.81379842,225.89,224.63,0.18546041]
[1693482173983,0.81379842,225.89,224.64,0.18546041]
[1693482174286,0.07284625,225.88,224.61,0.18546041]
[1693482174479,0.81379842,225.87,224.62,0.18546041]
[1693482174684,0.81379842,225.87,224.63,0.18546041]
[1693482174880,0.81379842,225.87,224.64,0.18546041]
[1693482175080,0.07284625,225.85,224.7,0.07221014]
[1693482175284,0.81379842,225.84,224.71,0.18546041]
[1693482176186,0.07284625,225.81,224.84,0.07221014]
[1693482176386,0.88664467,225.8,224.86,0.07221014]
[1693482176581,0.81379842,225.79,224.86,0.07221014]
[1693482176782,0.81379842,225.79,224.87,0.18546041]
[1693482177386,0.81379842,225.8,224.87,0.18546041]
[1693482177687,0.81379842,225.79,224.87,0.25767055]
[1693482177883,0.88664467,225.81,224.88,0.18546041]
[1693482178087,0.07284625,225.77,224.92,0.07221014]
[1693482178289,0.81379842,225.76,224.93,0.18546041]
[1693482178590,0.81379842,225.76,224.93,0.25767055]
[1693482178883,0.81379842,225.75,224.94,0.18546041]
[1693482179087,0.07284625,225.73,224.98,0.07221014]
[1693482179286,0.81379842,225.72,224.99,0.18546041]
[1693482179483,0.88664467,225.72,224.98,0.18546041]
[1693482179691,0.81379842,225.71,224.99,0.18546041]
[1693482179891,0.81379842,225.71,224.98,0.18546041]
[1693482180193,0.81379842,225.71,224.99,0.18546041]
[1693482180490,0.81379842,225.7,224.99,0.18546041]
[1693482180691,0.97128338,225.81,224.99,0.18546041]
[1693482180692,0.88664467,225.72,224.99,0.18546041]
[1693482180991,0.07284625,225.7,225.0,0.18546041]
[1693482181490,0.07284625,225.64,224.97,0.18546041]
[1693482181691,0.81379842,225.63,224.98,0.18546041]
[1693482181885,0.81379842,225.64,224.9,0.18546041]
[1693482182091,0.81379842,225.63,224.91,0.18546041]
[1693482182294,0.81379842,225.63,224.92,0.18546041]
[1693482182590,0.81379842,225.63,224.93,0.18546041]
[1693482182791,0.81379842,225.63,224.89,0.18546041]
[1693482182987,0.81379842,225.63,224.9,0.18546041]
[1693482183391,0.81379842,225.65,224.9,0.25767055]
[1693482183592,0.81379842,225.64,224.91,0.25767055]
[1693482183789,0.81379842,225.66,224.92,0.18546041]
[1693482183991,0.81379842,225.65,224.94,0.07221014]
[1693482184293,0.81379842,225.64,224.95,0.18546041]
[1693482184492,0.81379842,225.69,224.95,0.18546041]
[1693482184693,0.81379842,225.68,224.95,0.18546041]
[1693482184890,0.81379842,225.69,224.95,0.25767055]
[1693482185090,0.81379842,225.68,224.96,0.18546041]
[1693482185295,0.97128338,225.78,224.96,0.18546041]
[1693482185296,0.81379842,225.69,224.96,0.25767055]
[1693482185594,0.81379842,225.68,224.97,0.18546041]
[1693482185789,0.81379842,225.7,224.97,0.18546041]
[1693482185995,0.07284625,225.63,224.97,0.18546041]
[1693482186191,0.81379842,225.62,224.94,0.18546041]
[1693482186395,0.88664467,225.62,224.95,0.18546041]
[1693482186594,0.81379842,225.61,224.92,0.18546041]
[1693482186893,0.07284625,225.63,224.92,0.25767055]
[1693482186894,0.81379842,225.6,224.92,0.25767055]
[1693482187094,0.81379842,225.59,224.93,0.18546041]
[1693482187290,0.81379842,225.62,224.94,0.18546041]
[1693482187494,0.88575978,225.61,224.95,0.18546041]
[1693482187695,0.88575978,225.61,224.19,9.4559277]
[1693482187696,0.88575978,225.6,224.96,0.18546041]
[1693482187890,0.81379842,225.59,224.95,0.18546041]
[1693482188194,0.81379842,225.59,224.7,0.94559277]
[1693482188195,0.81379842,225.58,224.99,0.07091945]
[1693482188396,0.88575978,225.65,225.0,0.25637986]
[1693482188595,0.81379842,225.64,225.01,0.18546041]
[1693482189192,0.07196136,225.63,225.03,0.07091945]
[1693482189398,0.81379842,225.62,225.04,0.25637986]
[1693482189598,0.81379842,225.62,225.05,0.18546041]
[1693482189793,0.88575978,225.63,225.05,0.18546041]
[1693482189999,0.88575978,225.62,225.05,0.18546041]
[1693482190199,0.81379842,225.62,225.04,0.18546041]
[1693482190399,0.81379842,225.61,225.05,0.18546041]
[1693482190595,0.88575978,225.62,225.04,0.18546041]
[1693482190796,0.81379842,225.61,225.04,0.25637986]
[1693482190999,0.07196136,225.6,225.05,0.25637986]
[1693482191198,0.81379842,225.59,225.06,0.18546041]
[1693482192198,0.81379842,225.6,225.06,0.18546041]
[1693482192399,0.81379842,225.59,225.06,0.25637986]
[1693482192702,0.81379842,225.59,225.07,0.18546041]
[1693482193300,0.88575978,225.59,225.07,0.25637986]
[1693482193500,0.81379842,225.58,225.08,0.18546041]
[1693482194100,0.81379842,225.58,225.07,0.18546041]
[1693482194302,0.88575978,225.58,225.07,0.25637986]
[1693482194503,0.81379842,225.57,225.08,0.18546041]
[1693482195002,0.81379842,225.58,225.08,0.25637986]
[1693482195205,0.81379842,225.58,225.1,0.07091945]
[1693482195400,0.07196136,225.6,225.11,0.18546041]
[1693482195606,0.88694824,225.59,225.11,0.18546041]
[1693482195903,0.07196136,225.59,225.11,0.18546041]
[1693482196502,0.07196136,225.59,225.11,0.25637986]
[1693482196803,0.07196136,225.59,225.12,0.18546041]
[1693482197103,0.88697766,225.58,225.11,0.18546041]
[1693482197402,0.07196136,225.58,225.12,0.18546041]
[1693482197603,0.07196136,225.58,225.13,0.18546041]
[1693482197902,0.07196136,225.58,225.14,0.18546041]
[1693482198103,0.07196136,225.58,225.11,0.18546041]
[1693482198299,0.07196136,225.57,225.11,0.18546041]
[1693482198500,0.07196136,225.52,225.1,0.18546041]
[1693482198796,0.07196136,225.52,225.04,0.07091945]
[1693482198797,0.07196136,225.52,225.11,0.18546041]
[1693482198996,0.07196136,225.52,225.05,0.18546041]
[1693482199201,0.07196136,225.52,225.06,0.18546041]
[1693482199395,0.07196136,225.5,225.08,0.07091945]
[1693482199601,0.07196136,225.5,225.09,0.18546041]
[1693482200597,0.07196136,225.49,225.09,0.18546041]
[1693482200797,0.07196136,225.49,225.08,0.18546041]
[1693482201000,0.07196136,225.49,225.08,0.25637986]
[1693482201197,0.07196136,225.47,225.1,0.07091945]
[1693482201404,0.07196136,225.47,225.11,0.18546041]
[1693482202100,0.07196136,225.47,225.1,0.18546041]
[1693482202304,0.07196136,225.46,225.11,0.18546041]
[1693482202598,0.07196136,225.46,225.12,0.18546041]
[1693482202802,0.07196136,225.46,225.09,0.18546041]
[1693482203003,0.07196136,225.45,225.09,0.18546041]
[1693482203401,0.07196136,225.46,225.09,0.18546041]
[1693482203596,0.07196136,225.45,225.09,0.18546041]
[1693482203896,0.07196136,225.45,225.1,0.18546041]
[1693482204095,0.07196136,225.45,225.08,0.18546041]
[1693482204300,0.07196136,225.44,225.08,0.18546041]
[1693482204803,0.07196136,225.44,225.09,0.18546041]
[1693482205001,0.07196136,225.44,225.06,0.18546041]
[1693482205398,0.07196136,225.45,225.06,0.18546041]
[1693482205604,0.07196136,225.45,225.06,0.25637986]
[1693482205805,0.07196136,225.45,225.07,0.18546041]
[1693482205998,0.07196136,225.45,224.99,0.14183891]
[1693482205999,0.07196136,225.45,225.08,0.18546041]
[1693482206204,0.07196136,225.45,225.07,0.18546041]
[1693482206405,0.07196136,225.45,225.08,0.18546041]
[1693482206701,0.07196136,225.46,225.09,0.18546041]
[1693482206906,0.07196136,225.45,225.07,0.18546041]
[1693482207105,0.07196136,225.46,225.1,0.18546041]
[1693482207402,0.07196136,225.47,225.11,0.18546041]
[1693482207700,0.07196136,225.46,225.12,0.18546041]
[1693482207907,0.07196136,225.51,225.11,0.07091945]
[1693482208205,0.07196136,225.52,225.12,0.18546041]
[1693482208409,0.07196136,225.53,225.13,0.07091945]
[1693482208617,0.07196136,225.54,225.14,0.25637986]
[1693482208803,0.07196136,225.54,225.15,0.18546041]
[1693482209206,0.07196136,225.53,225.15,0.25637986]
[1693482209507,0.07196136,225.54,225.16,0.18546041]
[1693482210106,0.07196136,225.52,225.16,0.18546041]
[1693482210300,0.07196136,225.52,225.15,0.18546041]
[1693482210502,0.07196136,225.45,225.14,0.18546041]
[1693482210702,0.07196136,225.45,225.15,0.18546041]
[1693482210906,0.07196136,225.45,225.07,0.18546041]
[1693482211107,0.07196136,225.45,225.08,0.18546041]
[1693482211307,0.07196136,225.45,225.09,0.18546041]
[1693482211504,0.07196136,225.45,225.07,0.18546041]
[1693482211705,0.07196136,225.45,225.08,0.18546041]
[1693482211911,0.07196136,225.47,225.08,0.25637986]
[1693482212110,0.07196136,225.46,225.09,0.18546041]
[1693482212508,0.07196136,225.45,225.09,0.18546041]
[1693482212705,0.07196136,225.44,225.08,0.18546041]
[1693482212906,0.07196136,225.4,225.08,0.18546041]
[1693482213106,0.07196136,225.39,225.06,0.18546041]
[1693482213309,0.07196136,225.39,224.99,0.07091945]
[1693482213506,0.07196136,225.37,224.98,0.07091945]
[1693482213713,0.07196136,225.37,225.0,0.18792656]
[1693482213913,0.07196136,225.37,224.99,0.18792656]
[1693482214108,0.07196136,225.37,225.0,0.18792656]
[1693482214608,0.07196136,225.4,225.01,0.18792656]
[1693482214812,0.07196136,225.4,224.96,0.18792656]
[1693482215112,0.07196136,225.4,224.96,0.25884601]
[1693482215308,0.07196136,225.41,224.97,0.07091945]
[1693482215511,0.07196136,225.41,224.97,0.25884601]
[1693482215714,0.07196136,225.45,225.01,0.07091945]
[1693482216014,0.07196136,225.45,224.77,0.94559277]
[1693482216015,0.07196136,225.46,225.02,0.25884601]
[1693482216315,0.07196136,225.47,225.03,0.18792656]
[1693482216508,0.07196136,225.47,225.03,0.25884601]
[1693482216714,0.07196136,225.47,225.04,0.18792656]
[1693482217317,0.07196136,225.47,225.03,0.25884601]
[1693482217615,0.07196136,225.47,225.04,0.18792656]
[1693482217814,0.07196136,225.47,225.03,0.25884601]
[1693482218015,0.07196136,225.47,225.04,0.18792656]
[1693482218215,0.07196136,225.48,225.04,0.18792656]
[1693482218816,0.07196136,225.48,225.04,0.25884601]
[1693482219013,0.07196136,225.48,225.05,0.18792656]
[1693482219414,0.07196136,225.49,225.05,0.18792656]
[1693482221016,0.07196136,225.5,225.05,0.25884601]
[1693482221216,0.07196136,225.5,224.81,0.94559277]
[1693482221217,0.07196136,225.49,225.06,0.18792656]
[1693482221412,0.07196136,225.49,225.07,0.18792656]
[1693482221717,0.07196136,225.48,225.08,0.18792656]
[1693482221917,0.07196136,225.48,225.04,0.18792656]
[1693482222112,0.07196136,225.48,225.05,0.18792656]
[1693482222315,0.07196136,225.48,225.06,0.18792656]
[1693482222517,0.07196136,225.48,225.04,0.18792656]
[1693482222719,0.07196136,225.48,225.05,0.18792656]
[1693482222917,0.07196136,225.48,225.04,0.18792656]
[1693482223118,0.07196136,225.48,225.05,0.18792656]
[1693482223318,0.07196136,225.49,225.05,0.18792656]
[1693482223520,0.07196136,225.49,225.04,0.07091945]
[1693482223521,0.07196136,225.53,225.08,0.07091945]
[1693482223718,0.07196136,225.54,225.09,0.25884601]
[1693482223920,0.07196136,225.54,225.1,0.18792656]
[1693482224114,0.07196136,225.55,225.1,0.25884601]
[1693482224313,0.07196136,225.55,225.11,0.18792656]
[1693482224714,0.07196136,225.55,225.11,0.25884601]
[1693482224914,0.07196136,225.56,225.12,0.18792656]
[1693482225316,0.47974241,225.61,225.16,0.07091945]
[1693482225317,0.07196136,225.61,225.16,0.07091945]
[1693482225515,0.07196136,225.62,225.17,0.25884601]
[1693482225721,0.07196136,225.62,225.18,0.18792656]
[1693482226020,0.07196136,225.61,225.18,0.18792656]
[1693482226222,0.07196136,225.62,225.18,0.18792656]
[1693482226515,0.07196136,225.62,225.17,0.07091945]
[1693482226516,0.07196136,225.63,225.19,0.18792656]
[1693482226716,0.07196136,225.63,225.16,0.18792656]
[1693482226936,0.07196136,225.58,225.16,0.18792656]
[1693482227222,0.07196136,225.57,225.17,0.18792656]
[1693482227423,0.07196136,225.57,225.11,0.18792656]
[1693482227723,0.07196136,225.59,225.12,0.18792656]
[1693482228522,0.07196136,225.64,225.16,0.07091945]
[1693482228717,0.07196136,225.64,225.17,0.18792656]
[1693482228920,0.07196136,225.6,225.17,0.18792656]
[1693482229118,0.07196136,225.6,224.88,0.94559277]
[1693482229119,0.07196136,225.58,225.13,0.18792656]
[1693482229316,0.07196136,225.59,225.11,0.25884601]
[1693482229524,0.07196136,225.59,220.7,0.93624344]
[1693482229525,0.07196136,225.66,225.17,0.07091945]
[1693482229718,0.07196136,225.66,225.18,0.25884601]
[1693482229921,0.07196136,225.67,225.19,0.25884601]
[1693482230118,0.81474561,225.66,225.2,0.18792656]
[1693482230317,0.07196136,225.68,225.19,0.18792656]
[1693482230519,0.8147295,225.67,225.2,0.18792656]
[1693482230716,0.8147295,225.67,225.17,0.18792656]
[1693482231119,0.88669086,225.67,225.17,0.18792656]
[1693482231319,0.07196136,225.62,225.16,0.18792656]
[1693482231523,0.07196136,225.6,225.17,0.18792656]
[1693482231718,0.8147295,225.59,225.09,0.18792656]
[1693482231919,0.8147295,225.6,225.09,0.25884601]
[1693482232223,0.07196136,225.62,225.1,0.25884601]
[1693482232418,0.81496456,225.61,225.11,0.18792656]
[1693482232821,0.88692592,225.61,225.1,0.18792656]
[1693482233021,0.81496456,225.6,225.1,0.18792656]
[1693482233222,0.81496456,225.61,225.1,0.18792656]
[1693482233419,0.81497478,225.6,225.1,0.18792656]
[1693482233619,0.81497478,225.61,225.1,0.18792656]
[1693482233824,0.81497653,225.6,225.1,0.18792656]
[1693482234024,0.81497653,225.61,225.1,0.18792656]
[1693482234519,0.07196136,225.6,225.1,0.18792656]
[1693482234722,0.81497653,225.59,225.09,0.18792656]
[1693482234924,0.81497653,225.59,225.1,0.18792656]
[1693482235120,0.81497653,225.59,225.08,0.18792656]
[1693482236630,0.88693789,225.59,225.08,0.18792656]
[1693482236922,0.81497653,225.58,225.09,0.18792656]
[1693482237330,0.81497653,225.59,225.1,0.18792656]
[1693482237530,0.81502795,225.58,225.08,0.18792656]
[1693482237732,0.81502795,225.59,225.08,0.18792656]
[1693482238030,0.81503679,225.58,225.09,0.18792656]
[1693482238225,0.81503679,225.59,225.07,0.25884601]
[1693482238428,0.07196136,225.61,225.1,0.18792656]
[1693482238625,0.81498521,225.6,225.11,0.18792656]
[1693482238829,0.81498521,225.6,225.09,0.18792656]
[1693482239831,0.81498521,225.6,225.09,0.25884601]
[1693482240032,0.81498521,225.61,225.1,0.18792656]
[1693482240227,0.81498521,225.59,225.1,0.18792656]
[1693482240428,0.81498521,225.58,225.1,0.18792656]
[1693482240734,0.88694657,225.59,225.08,0.18792656]
[1693482240934,0.81498521,225.57,225.11,0.18792656]
[1693482241134,0.88694657,225.58,225.12,0.18792656]
[1693482241336,0.81498521,225.56,225.12,0.18792656]
[1693482241534,0.07196136,225.59,225.06,0.25884601]
[1693482241729,0.07196136,225.6,225.06,0.25884601]
[1693482241935,0.81501837,225.58,225.07,0.25884601]
[1693482242138,0.81501837,225.58,225.08,0.18792656]
[1693482242338,0.81501837,225.59,225.08,0.18792656]
[1693482242538,0.07196136,225.6,225.08,0.18792656]
[1693482242737,0.81501914,225.59,225.08,0.25884601]
[1693482242938,0.81501914,225.59,225.09,0.18792656]
[1693482243138,0.81501914,225.6,225.09,0.18792656]
[1693482243338,0.07196136,225.61,225.09,0.18792656]
[1693482243532,0.07196136,225.62,225.09,0.18792656]
[1693482243736,0.07196136,225.64,225.1,0.07091945]
[1693482243938,0.81495148,225.63,225.11,0.18792656]
[1693482244437,0.88691284,225.63,225.11,0.18792656]
[1693482244638,0.81495148,225.62,225.11,0.18792656]
[1693482244935,0.07196136,225.68,225.15,0.07091945]
[1693482245139,0.07196136,225.69,225.16,0.18792656]
[1693482245336,0.8147251,225.68,225.16,0.18792656]
[1693482245639,0.07196136,225.71,225.16,0.25884601]
[1693482245932,0.81470378,225.7,225.17,0.18792656]
[1693482246134,0.81470378,225.71,225.17,0.18792656]
[1693482246330,0.81470378,225.71,225.18,0.18792656]
[1693482246737,0.81470378,225.71,225.15,0.25884601]
[1693482247039,0.81470378,225.71,225.16,0.18792656]
[1693482248040,0.88666514,225.73,225.15,0.18792656]
[1693482248238,0.81470378,225.72,225.16,0.18792656]
[1693482248438,0.81470378,225.72,225.15,0.18792656]
[1693482248632,0.81470378,225.72,225.17,0.18792656]
[1693482248838,0.81470378,225.72,225.16,0.18792656]
[1693482249039,0.81470378,225.72,225.18,0.18792656]
[1693482249241,0.81470378,225.72,225.17,0.18792656]
[1693482249542,0.07196136,225.7,225.19,0.18792656]
[1693482249834,0.81470378,225.69,225.2,0.18792656]
[1693482250040,0.81470378,225.7,225.17,0.18792656]
[1693482251445,0.81470378,225.7,225.17,0.25884601]
[1693482251643,0.81470378,225.7,225.18,0.07091945]
[1693482251944,0.07196136,225.74,225.19,0.07091945]
[1693482252241,0.07196136,225.79,225.24,0.07091945]
[1693482252442,0.07196136,225.79,225.25,0.18792656]
[1693482252643,0.81443012,225.78,225.24,0.18792656]
[1693482252944,0.81443012,225.78,225.25,0.18792656]
[1693482253146,0.88639148,225.79,225.25,0.18792656]
[1693482253445,0.88639148,225.78,225.25,0.25884601]
[1693482253645,0.81443012,225.78,225.25,0.18792656]
[1693482253843,0.81443012,225.77,225.26,0.18792656]
[1693482254042,0.88639148,225.79,225.26,0.18792656]
[1693482254240,0.81443012,225.78,225.23,0.18792656]
[1693482254546,0.81443012,225.78,225.24,0.18792656]
[1693482254745,0.88639148,225.78,225.24,0.18792656]
[1693482254945,0.81443012,225.77,225.22,0.18792656]
[1693482255145,0.81443012,225.78,225.25,0.18792656]
[1693482255345,0.81443012,225.78,225.23,0.25884601]
[1693482255645,0.81443012,225.79,225.24,0.25884601]
[1693482255841,0.81443012,225.78,225.24,0.18792656]
[1693482256043,0.81443012,225.8,225.25,0.18792656]
[1693482256241,0.81443012,225.8,225.23,0.18792656]
[1693482256945,0.81443012,225.8,225.23,0.25884601]
[1693482257141,0.81443012,225.81,225.29,0.07091945]
[1693482257340,0.07196136,225.88,225.3,0.18792656]
[1693482257541,0.07196136,225.86,225.31,0.07091945]
[1693482257742,0.81412802,225.85,225.32,0.18792656]
[1693482257946,0.81412802,225.88,225.28,0.18792656]
[1693482258249,0.81412802,225.87,225.29,0.18792656]
[1693482258548,0.81412802,225.88,225.28,0.18792656]
[1693482258845,0.81412802,225.87,225.3,0.07091945]
[1693482259351,0.07196136,225.93,225.31,0.25884601]
[1693482259549,0.81401216,225.92,225.32,0.18792656]
[1693482260050,0.81401216,225.93,225.27,0.18792656]
[1693482260248,0.81401216,225.92,225.28,0.18792656]